fUSD/lending_fUSD_20240105
["ID","MTS","AMOUNT","RATE_DAILY","PERIOD"]
[310294956,1704463932661,-954.52,0.00032054,2]
[310294957,1704463932678,-763.63,0.00032054,2]
[310294958,1704463932694,-1216.82,0.00032054,2]
[310294959,1704463932713,-876.69,0.00032054,2]
[310294960,1704463932728,-511.23,0.00032054,2]
[310294961,1704463932742,-500.0,0.00032054,2]
[310294962,1704463932757,-1777.29,0.00032054,2]
[310294963,1704463932770,-500.0,0.00032054,2]
[310294964,1704463932784,-329.32083193,0.00032054,2]
[310294965,1704463932799,-813.3,0.00032054,2]
[310294966,1704463932814,-1082.13,0.00032054,2]
[310294967,1704463932834,-677.81,0.00032054,2]
[310294968,1704463932847,-1325.23,0.00032054,2]
[310294969,1704463932861,-563.53305199,0.00032054,2]
[310294970,1704463932874,-500.0,0.00032054,2]
[310294971,1704463932886,-251.13952514,0.00032054,2]
[310294972,1704463932900,-3298.71,0.00032054,2]
[310294973,1704463932914,-500.0,0.00032054,2]
[310294974,1704463932927,-798.97,0.00032054,2]
[310294975,1704463932941,-500.0,0.00032054,2]
[310294976,1704463932954,-500.0,0.00032054,2]
[310294977,1704463932967,-182.12452095,0.00032054,2]
[310294978,1704463932980,-900.8,0.00032054,2]
[310294979,1704463932994,-500.0,0.00032054,2]
[310294980,1704463933008,-1067.2,0.00032054,2]
[310294981,1704463933022,-500.0,0.00032054,2]
[310294982,1704463933035,-2016.59,0.00032054,2]
[310294983,1704463933048,-752.23,0.00032054,2]
[310294984,1704463933061,-1251.67,0.00032054,2]
[310294985,1704463933079,-811.52,0.00032054,2]
[310294986,1704463933092,-500.0,0.00032054,2]
[310294987,1704463933106,-500.0,0.00032054,2]
[310294988,1704463933118,-8654.29,0.00032054,2]
[310294989,1704463933130,-500.0,0.00032054,2]
[310294990,1704463933144,-500.0,0.00032054,2]
[310294991,1704463933157,-909.25,0.00032054,2]
[310294992,1704463933170,-511.88,0.00032054,2]
[310294993,1704463933183,-952.02,0.00032054,2]
[310294994,1704463933197,-963.43,0.00032054,2]
[310294995,1704463933210,-500.0,0.00032054,2]
[310294996,1704463933222,-500.0,0.00032054,2]
[310294997,1704463933236,-500.0,0.00032054,2]
[310294998,1704463933249,-2290.16,0.00032054,2]
[310294999,1704463933260,-1293.97,0.00032054,2]
[310295000,1704463933272,-5023.74,0.00032054,2]
[310295001,1704463933285,-960.97,0.00032054,2]
[310295002,1704463933298,-1316.73,0.00032054,2]
[310295003,1704463933311,-500.0,0.00032054,2]
[310295004,1704463933328,-500.0,0.00032054,2]
[310295005,1704463933340,-500.0,0.00032054,2]
[310295006,1704463933353,-500.0,0.00032054,2]
[310295007,1704463933367,-163.30673305,0.00032054,2]
[310295008,1704463933381,-500.0,0.00032054,2]
[310295009,1704463933394,-2888.44,0.00032054,2]
[310295010,1704463933407,-523.31344575,0.00032054,2]
[310295011,1704463933419,-780.49,0.00032054,2]
[310295012,1704463933431,-213.57,0.00032054,2]
[310295013,1704463933442,-873.53,0.00032054,2]
[310295014,1704463933454,-840.85,0.00032054,2]
[310295015,1704463933466,-552.42,0.00032054,2]
[310295016,1704463933477,-500.0,0.00032054,2]
[310295017,1704463933489,-500.0,0.00032054,2]
[310295018,1704463933501,-17362.55,0.00032054,2]
[310295019,1704463933513,-2346.84,0.00032054,2]
[310295020,1704463933525,-1000.0,0.00032054,2]
[310295021,1704463933536,-4809.34,0.00032054,2]
[310295022,1704463933547,-607.5,0.00032054,2]
[310295023,1704463933557,-619.58,0.00032054,2]
[310295024,1704463933570,-539.06,0.00032054,2]
[310295025,1704463933580,-500.0,0.00032054,2]
[310295026,1704463933591,-229.85015184,0.00032054,2]
[310295027,1704463933602,-500.0,0.00032054,2]
[310295028,1704463933614,-500.0,0.00032054,2]
[310295029,1704463933626,-9463.24,0.00032054,2]
[310295030,1704463933637,-500.0,0.00032054,2]
[310295031,1704463933649,-500.0,0.00032054,2]
[310295032,1704463933660,-4907.15,0.00032054,2]
[310295033,1704463933671,-4324.26,0.00032054,2]
[310295034,1704463933682,-2724.92,0.00032054,2]
[310295035,1704463933693,-11882.1,0.00032054,2]
[310295036,1704463933704,-746.12,0.00032054,2]
[310295037,1704463933716,-845.63,0.00032054,2]
[310295038,1704463933728,-500.0,0.00032054,2]
[310295039,1704463933739,-500.0,0.00032054,2]
[310295040,1704463933750,-500.0,0.00032054,2]
[310295041,1704463933761,-500.0,0.00032054,2]
[310295042,1704463933773,-3292.08,0.00032054,2]
[310295043,1704463933784,-500.0,0.00032054,2]
[310295044,1704463933796,-229.5750219,0.00032054,2]
[310295045,1704463933808,-500.0,0.00032054,2]
[310295046,1704463933818,-918.77,0.00032054,2]
[310295047,1704463933830,-644.83,0.00032054,2]
[310295048,1704463933841,-3344.35,0.00032054,2]
[310295049,1704463933852,-1395.08,0.00032054,2]
[310295050,1704463933863,-500.0,0.00032054,2]
[310295051,1704463933874,-500.0,0.00032054,2]
[310295052,1704463933885,-500.0,0.00032054,2]
[310295053,1704463933896,-500.0,0.00032054,2]
[310295054,1704463933906,-500.0,0.00032054,2]
[310295055,1704463933917,-613.87,0.00032054,2]
[310295056,1704463933928,-500.0,0.00032054,2]
[310295057,1704463933939,-1259.17,0.00032054,2]
[310295058,1704463933950,-2954.54,0.00032054,2]
[310295059,1704463933962,-500.0,0.00032054,2]
[310295060,1704463933973,-737.12,0.00032054,2]
[310295061,1704463933984,-2366.41,0.00032054,2]
[310295062,1704463933995,-500.0,0.00032054,2]
[310295063,1704463934007,-500.0,0.00032054,2]
[310295064,1704463934018,-5440.99,0.00032054,2]
[310295065,1704463934030,-500.0,0.00032054,2]
[310295066,1704463934041,-500.0,0.00032054,2]
[310295067,1704463934052,-3361.08,0.00032054,2]
[310295068,1704463934063,-1558.45,0.00032054,2]
[310295069,1704463934076,-500.0,0.00032054,2]
[310295070,1704463934087,-500.0,0.00032054,2]
[310295071,1704463934098,-1062.83,0.00032054,2]
[310295072,1704463934108,-500.0,0.00032054,2]
[310295073,1704463934120,-812.59,0.00032054,2]
[310295074,1704463934131,-646.75,0.00032054,2]
[310295075,1704463934142,-500.0,0.00032054,2]
[310295076,1704463934153,-1323.29,0.00032054,2]
[310295077,1704463934164,-500.0,0.00032054,2]
[310295078,1704463934175,-16516.01,0.00032054,2]
[310295079,1704463934186,-747.13,0.00032054,2]
[310295080,1704463934197,-8220.31,0.00032054,2]
[310295081,1704463934210,-500.0,0.00032054,2]
[310295082,1704463934221,-500.0,0.00032054,2]
[310295083,1704463934233,-1218.24,0.00032054,2]
[310295084,1704463934244,-678.9,0.00032054,2]
[310295085,1704463934256,-509.33,0.00032054,2]
[310295086,1704463934269,-1093.85,0.00032054,2]
[310295087,1704463934280,-500.0,0.00032054,2]
[310295088,1704463934293,-500.0,0.00032054,2]
[310295089,1704463934305,-625.64,0.00032054,2]
[310295090,1704463934317,-500.0,0.00032054,2]
[310295091,1704463934331,-500.0,0.00032054,2]
[310295092,1704463934343,-1229.71,0.00032054,2]
[310295093,1704463934355,-528.93,0.00032054,2]
[310295094,1704463934368,-500.0,0.00032054,2]
[310295095,1704463934379,-500.0,0.00032054,2]
[310295096,1704463934391,-500.0,0.00032054,2]
[310295097,1704463934404,-500.0,0.00032054,2]
[310295098,1704463934415,-696.27,0.00032054,2]
[310295099,1704463934427,-906.38,0.00032054,2]
[310295100,1704463934440,-500.0,0.00032054,2]
[310295101,1704463934452,-500.0,0.00032054,2]
[310295102,1704463934465,-1228.93,0.00032054,2]
[310295103,1704463934478,-500.0,0.00032054,2]
[310295104,1704463934490,-1479.47,0.00032054,2]
[310295105,1704463934502,-1060.36,0.00032054,2]
[310295106,1704463934514,-1559.68,0.00032054,2]
[310295107,1704463934526,-500.0,0.00032054,2]
[310295108,1704463934539,-570.33863304,0.00032054,2]
[310295109,1704463934551,-535.98,0.00032054,2]
[310295110,1704463934563,-1024.05,0.00032054,2]
[310295111,1704463934578,-500.0,0.00032054,2]
[310295112,1704463934591,-20552.87,0.00032054,2]
[310295113,1704463934602,-732.24,0.00032054,2]
[310295114,1704463934614,-500.0,0.00032054,2]
[310295115,1704463934628,-764.89,0.00032054,2]
[310295116,1704463934640,-535.24416063,0.00032054,2]
[310295117,1704463934653,-1384.47,0.00032054,2]
[310295118,1704463934664,-2343.7,0.00032054,2]
[310295119,1704463934676,-500.0,0.00032054,2]
[310295120,1704463934687,-855.82,0.00032054,2]
[310295121,1704463934698,-1443.03,0.00032054,2]
[310295122,1704463934710,-573.82566789,0.00032054,2]
[310295123,1704463934722,-1467.75,0.00032054,2]
[310295124,1704463934734,-645.24907509,0.00032054,2]
[310295125,1704463934745,-2427.76,0.00032054,2]
[310295126,1704463934756,-500.0,0.00032054,2]
[310295127,1704463934770,-500.0,0.00032054,2]
[310295128,1704463934781,-1262.81,0.00032054,2]
[310295129,1704463934795,-502.15,0.00032054,2]
[310295130,1704463934807,-976.69,0.00032054,2]
[310295131,1704463934823,-963.68,0.00032054,2]
[310295132,1704463934835,-425.13959148,0.00032054,2]
[310295133,1704463934847,-1404.49,0.00032054,2]
[310295134,1704463934859,-500.0,0.00032054,2]
[310295135,1704463934872,-1710.42,0.00032054,2]
[310295136,1704463934886,-1043.98,0.00032054,2]
[310295137,1704463934898,-500.0,0.00032054,2]
[310295138,1704463934909,-827.77,0.00032054,2]
[310295139,1704463934922,-500.0,0.00032054,2]
[310295140,1704463934934,-670.86,0.00032054,2]
[310295141,1704463934946,-552.27,0.00032054,2]
[310295142,1704463934958,-2031.67,0.00032054,2]
[310295143,1704463934970,-500.0,0.00032054,2]
[310295144,1704463934982,-500.0,0.00032054,2]
[310295145,1704463934994,-737.13,0.00032054,2]
[310295146,1704463935006,-593.61,0.00032054,2]
[310295147,1704463935018,-7439.39,0.00032054,2]
[310295148,1704463935030,-973.07,0.00032054,2]
[310295149,1704463935042,-563.27,0.00032054,2]
[310295150,1704463935055,-585.98,0.00032054,2]
[310295151,1704463935066,-500.0,0.00032054,2]
[310295152,1704463935081,-878.72,0.00032054,2]
[310295153,1704463935093,-500.0,0.00032054,2]
[310295154,1704463935104,-1022.6,0.00032054,2]
[310295155,1704463935116,-500.0,0.00032054,2]
[310295156,1704463935128,-1959.09,0.00032054,2]
[310295157,1704463935140,-732.57,0.00032054,2]
[310295158,1704463935152,-11053.17,0.00032054,2]
[310295159,1704463935164,-757.66,0.00032054,2]
[310295160,1704463935175,-500.0,0.00032054,2]
[310295161,1704463935187,-500.0,0.00032054,2]
[310295162,1704463935198,-511.54,0.00032054,2]
[310295163,1704463935210,-500.0,0.00032054,2]
[310295164,1704463935220,-1241.64,0.00032054,2]
[310295165,1704463935232,-3419.36,0.00032054,2]
[310295166,1704463935243,-1092.45,0.00032054,2]
[310295167,1704463935255,-2084.07,0.00032054,2]
[310295168,1704463935267,-558.28,0.00032054,2]
[310295169,1704463935279,-500.0,0.00032054,2]
[310295170,1704463935291,-1946.6,0.00032054,2]
[310295171,1704463935303,-500.0,0.00032054,2]
[310295172,1704463935314,-500.0,0.00032054,2]
[310295173,1704463935329,-1013.42,0.00032054,2]
[310295174,1704463935340,-500.0,0.00032054,2]
[310295175,1704463935353,-500.0,0.00032054,2]
[310295176,1704463935367,-500.0,0.00032054,2]
[310295177,1704463935381,-1212.22,0.00032054,2]
[310295178,1704463935395,-2361.2,0.00032054,2]
[310295179,1704463935409,-500.0,0.00032054,2]
[310295180,1704463935422,-500.0,0.00032054,2]
[310295181,1704463935438,-1128.19,0.00032054,2]
[310295182,1704463935452,-702.4,0.00032054,2]
[310295183,1704463935467,-764.39,0.00032054,2]
[310295184,1704463935487,-500.0,0.00032054,2]
[310295185,1704463935501,-517.07,0.00032054,2]
[310295186,1704463935514,-1542.41,0.00032054,2]
[310295187,1704463935527,-1440.35,0.00032054,2]
[310295188,1704463935541,-500.0,0.00032054,2]
[310295189,1704463935554,-500.0,0.00032054,2]
[310295190,1704463935567,-715.0,0.00032054,2]
[310295191,1704463935583,-500.0,0.00032054,2]
[310295192,1704463935596,-500.0,0.00032054,2]
[310295193,1704463935608,-2358.36,0.00032054,2]
[310295194,1704463935621,-1017.07,0.00032054,2]
[310295195,1704463935634,-500.0,0.00032054,2]
[310295196,1704463935647,-5040.24,0.00032054,2]
[310295197,1704463935661,-500.0,0.00032054,2]
[310295198,1704463935674,-1054.48,0.00032054,2]
[310295199,1704463935687,-500.0,0.00032054,2]
[310295200,1704463935700,-500.0,0.00032054,2]
[310295201,1704463935713,-500.0,0.00032054,2]
[310295202,1704463935726,-500.0,0.00032054,2]
[310295203,1704463935739,-915.19,0.00032054,2]
[310295204,1704463935753,-8316.18,0.00032054,2]
[310295205,1704463935766,-1182.97,0.00032054,2]
[310295206,1704463935780,-5436.81,0.00032054,2]
[310295207,1704463935792,-500.0,0.00032054,2]
[310295208,1704463935806,-500.0,0.00032054,2]
[310295209,1704463935822,-249.37572449,0.00032054,2]
[310295210,1704463935835,-826.79,0.00032054,2]
[310295211,1704463935848,-709.6,0.00032054,2]
[310295212,1704463935860,-500.0,0.00032054,2]
[310295213,1704463935873,-500.0,0.00032054,2]
[310295214,1704463935887,-526.58,0.00032054,2]
[310295215,1704463935899,-574.8,0.00032054,2]
[310295216,1704463935912,-856.02,0.00032054,2]
[310295217,1704463935925,-2833.48,0.00032054,2]
[310295218,1704463935938,-3000.0,0.0003206,2]
[310295219,1704463935951,-3000.0,0.0003207,2]
[310295220,1704463935964,-3000.0,0.0003208,2]
[310295221,1704463935977,-3000.0,0.0003209,2]
[310295222,1704463935989,-209.0,0.000321,2]
[310295223,1704463936002,-3000.0,0.000321,2]
[310295224,1704463936014,-3000.0,0.0003211,2]
[310295225,1704463936028,-3000.0,0.0003212,2]
[310295226,1704463936041,-3000.0,0.0003213,2]
[310295227,1704463936053,-3000.0,0.0003214,2]
[310295228,1704463936067,-3000.0,0.0003215,2]
[310295229,1704463936082,-3000.0,0.0003216,2]
[310295230,1704463936095,-3000.0,0.0003217,2]
[310295231,1704463936109,-3000.0,0.0003218,2]
[310295232,1704463936123,-3553.344442,0.0003219,2]
[310295233,1704463936136,-500.0,0.00032192,2]
[310295234,1704463936148,-173.17,0.00032247,2]
[310295235,1704463936161,-542.89503766,0.00032247,15]
[310295236,1704463936174,-500.0,0.00032247,2]
[310295237,1704463936187,-333.8348489,0.00032247,2]
[310295238,1704463936200,-1444.79,0.00032247,2]
[310295239,1704463936213,-947.41,0.00032247,2]
[310295240,1704463936226,-546.77694089,0.00032247,2]
[310295241,1704463936239,-2917.19,0.00032247,2]
[310295242,1704463936251,-500.0,0.00032247,2]
[310295243,1704463936263,-1039.42,0.00032247,2]
[310295244,1704463936276,-500.0,0.00032247,2]
[310295245,1704463936289,-588.09,0.00032247,2]
[310295246,1704463936302,-500.0,0.00032247,2]
[310295247,1704463936315,-984.84,0.00032247,2]
[310295248,1704463936331,-1577.2,0.00032247,2]
[310295249,1704463936343,-1004.25,0.00032247,2]
[310295250,1704463936356,-500.0,0.00032247,2]
[310295251,1704463936369,-500.0,0.00032247,2]
[310295252,1704463936382,-941.19,0.00032247,2]
[310295253,1704463936395,-500.0,0.00032247,2]
[310295254,1704463936408,-500.0,0.00032247,2]
[310295255,1704463936420,-587.5,0.00032247,2]
[310295256,1704463936433,-244.87937459,0.00032247,2]
[310295257,1704463936446,-684.69,0.00032247,2]
[310295258,1704463936459,-500.0,0.00032247,2]
[310295259,1704463936472,-500.0,0.00032247,2]
[310295260,1704463936485,-502.66,0.00032247,2]
[310295261,1704463936499,-1249.93,0.00032247,2]
[310295262,1704463936512,-700.39,0.00032247,2]
[310295263,1704463936524,-960.04,0.00032247,2]
[310295264,1704463936535,-500.0,0.00032247,2]
[310295265,1704463936546,-537.41,0.00032247,2]
[310295266,1704463936556,-667.92,0.00032247,2]
[310295267,1704463936870,-510.05,0.00032247,2]
[310295268,1704463936892,-978.16,0.00032247,2]
[310295269,1704463936902,-500.0,0.00032247,2]
[310295270,1704463936913,-945.97,0.00032247,2]
[310295271,1704463936922,-1019.98,0.00032247,2]
[310295272,1704463936933,-500.0,0.00032247,2]
[310295273,1704463936943,-803.57,0.00032247,2]
[310295274,1704463936952,-889.76,0.00032247,2]
[310295275,1704463936962,-610.92,0.00032247,2]
[310295276,1704463936972,-605.09,0.00032247,2]
[310295277,1704463936981,-500.0,0.00032247,2]
[310295278,1704463936991,-571.57,0.00032247,2]
[310295279,1704463937001,-500.0,0.00032247,2]
[310295280,1704463937010,-500.0,0.00032247,2]
[310295281,1704463937020,-500.0,0.00032247,2]
[310295282,1704463937029,-500.0,0.00032247,2]
[310295283,1704463937039,-500.0,0.00032247,2]
[310295284,1704463937048,-258.30234345,0.000323,4]
[310295285,1704463937057,-184.0,0.000323,21]
[310295286,1704463937067,-500.0,0.00032328,2]
[310295287,1704463937078,-500.0,0.00032328,2]
[310295288,1704463937088,-500.0,0.00032328,2]
[310295289,1704463937098,-578.99,0.00032328,2]
[310295290,1704463937107,-570.77,0.00032328,2]
[310295291,1704463937117,-500.0,0.00032328,2]
[310295292,1704463937128,-500.0,0.00032328,2]
[310295293,1704463937138,-255.81888129,0.00032328,2]
[310295294,1704463937149,-500.0,0.00032328,2]
[310295295,1704463937159,-500.0,0.00032328,2]
[310295296,1704463937169,-500.0,0.00032328,2]
[310295297,1704463937179,-500.0,0.00032328,2]
[310295298,1704463937189,-500.0,0.00032328,2]
[310295299,1704463937199,-964.18,0.00032328,2]
[310295300,1704463937209,-500.0,0.00032328,2]
[310295301,1704463937219,-500.0,0.00032328,2]
[310295302,1704463937228,-500.0,0.00032328,2]
[310295303,1704463937238,-500.0,0.00032328,2]
[310295304,1704463937249,-500.0,0.00032328,2]
[310295305,1704463937259,-500.0,0.00032328,2]
[310295306,1704463937269,-500.0,0.00032328,2]
[310295307,1704463937279,-500.0,0.00032328,2]
[310295308,1704463937289,-500.0,0.00032328,2]
[310295309,1704463937299,-500.0,0.00032328,2]
[310295310,1704463937309,-500.0,0.00032328,2]
[310295311,1704463937319,-500.0,0.00032328,2]
[310295312,1704463937333,-500.0,0.00032328,2]
[310295313,1704463937343,-500.0,0.00032328,2]
[310295314,1704463937354,-500.0,0.00032328,2]
[310295315,1704463937364,-500.0,0.00032328,2]
[310295316,1704463937375,-500.0,0.00032328,2]
[310295317,1704463937386,-500.0,0.00032328,2]
[310295318,1704463937396,-776.92,0.00032328,2]
[310295319,1704463937406,-500.0,0.00032328,2]
[310295320,1704463937417,-500.0,0.00032328,2]
[310295321,1704463937427,-500.0,0.00032328,2]
[310295322,1704463937438,-500.0,0.00032328,2]
[310295323,1704463937448,-500.0,0.00032328,2]
[310295324,1704463937458,-500.0,0.00032328,2]
[310295325,1704463937469,-271.10684333,0.00032328,2]
[310295326,1704463937481,-500.0,0.00032328,2]
[310295327,1704463937491,-754.78,0.00032328,2]
[310295328,1704463937503,-608.57,0.00032328,2]
[310295329,1704463937513,-500.0,0.00032328,2]
[310295330,1704463937523,-500.0,0.00032328,2]
[310295331,1704463937533,-500.0,0.00032328,2]
[310295332,1704463937543,-500.0,0.00032328,2]
[310295333,1704463937554,-500.0,0.00032328,2]
[310295334,1704463937565,-574.49,0.00032328,2]
[310295335,1704463937578,-500.0,0.00032328,2]
[310295336,1704463937589,-500.0,0.00032328,2]
[310295337,1704463937600,-354.2653934,0.00032328,2]
[310295338,1704463937611,-500.0,0.00032328,2]
[310295339,1704463937622,-500.0,0.00032328,2]
[310295340,1704463937632,-597.18,0.00032328,2]
[310295341,1704463937643,-543.3565684,0.00032328,2]
[310295342,1704463937654,-500.0,0.00032328,2]
[310295343,1704463937664,-535.87,0.00032328,2]
[310295344,1704463937674,-500.0,0.00032328,2]
[310295345,1704463937684,-329.48354137,0.00032328,2]
[310295346,1704463937695,-500.0,0.00032328,2]
[310295347,1704463937706,-500.0,0.00032328,2]
[310295348,1704463937717,-319.35592529,0.00032328,2]
[310295349,1704463937727,-500.0,0.00032328,2]
[310295350,1704463937737,-500.0,0.00032328,2]
[310295351,1704463937748,-503.60893026,0.00032328,2]
[310295352,1704463937759,-500.0,0.00032328,2]
[310295353,1704463937770,-847.71,0.00032328,2]
[310295354,1704463937780,-500.0,0.00032328,2]
[310295355,1704463937789,-500.0,0.00032328,2]
[310295356,1704463937799,-500.0,0.00032328,2]
[310295357,1704463937810,-500.0,0.00032328,2]
[310295358,1704463937820,-475.04686218,0.00032328,2]
[310295359,1704463937832,-500.0,0.00032328,2]
[310295360,1704463937842,-500.0,0.00032328,2]
[310295361,1704463937852,-939.06,0.00032328,2]
[310295362,1704463937862,-500.0,0.00032328,2]
[310295363,1704463937872,-500.0,0.00032328,2]
[310295364,1704463937881,-500.0,0.00032328,2]
[310295365,1704463937891,-500.0,0.00032328,2]
[310295366,1704463937900,-500.0,0.00032328,2]
[310295367,1704463937909,-500.0,0.00032328,2]
[310295368,1704463937919,-617.42,0.00032328,2]
[310295369,1704463937929,-500.0,0.00032328,2]
[310295370,1704463937938,-500.0,0.00032328,2]
[310295371,1704463937948,-500.0,0.00032328,2]
[310295372,1704463937958,-763.35,0.00032328,2]
[310295373,1704463937967,-500.0,0.00032328,2]
[310295374,1704463937976,-581.06,0.00032328,2]
[310295375,1704463937986,-533.25,0.00032328,2]
[310295376,1704463937996,-1032.57,0.00032328,2]
[310295377,1704463938005,-500.0,0.00032328,2]
[310295378,1704463938017,-500.0,0.00032328,2]
[310295379,1704463938029,-668.81,0.00032328,2]
[310295380,1704463938050,-897.42,0.00032328,2]
[310295381,1704463938059,-500.0,0.00032328,2]
[310295382,1704463938069,-610.9,0.00032328,2]
[310295383,1704463938084,-500.0,0.00032328,2]
[310295384,1704463938094,-542.23,0.00032328,2]
[310295385,1704463938104,-500.0,0.00032328,2]
[310295386,1704463938114,-265.99895713,0.00032328,2]
[310295387,1704463938124,-500.0,0.00032328,2]
[310295388,1704463938133,-977.28,0.00032328,2]
[310295389,1704463938143,-500.0,0.00032328,2]
[310295390,1704463938153,-500.0,0.00032328,2]
[310295391,1704463938163,-564.72,0.00032328,2]
[310295392,1704463938173,-500.0,0.00032328,2]
[310295393,1704463938183,-623.13,0.00032328,2]
[310295394,1704463938193,-500.0,0.00032328,2]
[310295395,1704463938203,-660.13,0.00032328,2]
[310295396,1704463938214,-500.0,0.00032328,2]
[310295397,1704463938225,-1107.9,0.00032328,2]
[310295398,1704463938235,-500.0,0.00032328,2]
[310295399,1704463938245,-500.0,0.00032328,2]
[310295400,1704463938255,-500.0,0.00032328,2]
[310295401,1704463938265,-500.0,0.00032328,2]
[310295402,1704463938275,-534.02,0.00032328,2]
[310295403,1704463938285,-500.0,0.00032328,2]
[310295404,1704463938295,-1001.59,0.00032328,2]
[310295405,1704463938304,-500.0,0.00032328,2]
[310295406,1704463938314,-500.0,0.00032328,2]
[310295407,1704463938327,-500.0,0.00032328,2]
[310295408,1704463938337,-500.0,0.00032328,2]
[310295409,1704463938346,-500.0,0.00032328,2]
[310295410,1704463938357,-577.73,0.00032328,2]
[310295411,1704463938366,-500.0,0.00032328,2]
[310295412,1704463938376,-515.35,0.00032328,2]
[310295413,1704463938386,-500.0,0.00032328,2]
[310295414,1704463938395,-482.68378445,0.00032328,2]
[310295415,1704463938405,-528.01,0.00032328,2]
[310295416,1704463938415,-500.0,0.00032328,2]
[310295417,1704463938425,-548.84398794,0.00032328,2]
[310295418,1704463938434,-500.0,0.00032328,2]
[310295419,1704463938444,-609.91,0.00032328,2]
[310295420,1704463938454,-3164.14,0.00032328,2]
[310295421,1704463938465,-500.0,0.00032328,2]
[310295422,1704463938475,-767.51,0.00032328,2]
[310295423,1704463938485,-570.27150814,0.00032328,2]
[310295424,1704463938494,-500.0,0.00032328,2]
[310295425,1704463938505,-500.0,0.00032328,2]
[310295426,1704463938514,-572.23,0.00032328,2]
[310295427,1704463938524,-500.0,0.00032328,2]
[310295428,1704463938533,-1043.05,0.00032328,2]
[310295429,1704463938544,-663.96,0.00032328,2]
[310295430,1704463938553,-500.0,0.00032328,2]
[310295431,1704463938563,-969.42,0.00032328,2]
[310295432,1704463938575,-500.0,0.00032328,2]
[310295433,1704463938585,-500.0,0.00032328,2]
[310295434,1704463938594,-951.95,0.00032328,2]
[310295435,1704463938604,-500.0,0.00032328,2]
[310295436,1704463938614,-500.0,0.00032328,2]
[310295437,1704463938626,-500.0,0.00032328,2]
[310295438,1704463938636,-500.0,0.00032328,2]
[310295439,1704463938645,-500.0,0.00032328,2]
[310295440,1704463938656,-585.0,0.00032328,2]
[310295441,1704463938667,-795.33,0.00032328,2]
[310295442,1704463938676,-500.0,0.00032328,2]
[310295443,1704463938685,-500.0,0.00032328,2]
[310295444,1704463938694,-500.0,0.00032328,2]
[310295445,1704463938706,-500.0,0.00032328,2]
[310295446,1704463938715,-535.25,0.00032328,2]
[310295447,1704463938725,-573.11,0.00032328,2]
[310295448,1704463938734,-1278.92,0.00032328,2]
[310295449,1704463938746,-500.0,0.00032328,2]
[310295450,1704463938756,-1115.46,0.00032328,2]
[310295451,1704463938766,-522.9,0.00032328,2]
[310295452,1704463938776,-503.15,0.00032328,2]
[310295453,1704463938786,-500.0,0.00032328,2]
[310295454,1704463938795,-500.0,0.00032328,2]
[310295455,1704463938805,-500.0,0.00032328,2]